[Event "Najdorf Memorial-A 2022"]
[Site "Warsaw"]
[Date "2022.07.11"]
[Round "3.6"]
[White "Siekanska, Zuzanna"]
[Black "Deszczynski, Adam"]
[Result "0-1"]
[ECO "E71"]
[WhiteElo "1712"]
[BlackElo "2321"]
[Annotator "ChessBase"]
[PlyCount "80"]
[EventDate "2022.07.09"]
[EventType "swiss"]
[EventCountry "POL"]
[SourceTitle "playchess.com"]
[Source "ChessBase"]
[SourceQuality "1"]
[TimeControl "40/5400+30:1800+30"]

1. d4 {[%emt 0:00:03]} Nf6 {[%emt 0:01:53]} 2. c4 {[%emt 0:00:27]} g6 {[%emt 0:01:46]} 3. Nc3 {[%emt 0:00:06]} Bg7 {[%emt 0:00:49]} 4. e4 {[%emt 0:00:15]} d6 {[%emt 0:00:40]} 5. h3 {[%emt 0:00:06]} e5 {[%emt 0:03:29]} 6. d5 {[%emt 0:00:13]} a5 {[%emt 0:02:31]} 7. Be3 {[%emt 0:01:53]} Na6 {[%emt 0:01:45]} 8. g4 {[%emt 0:05:14]} Nd7 {[%emt 0:15:04]} 9. Nge2 {[%emt 0:02:16]} Bf6 {[%emt 0:04:34]} 10. Qd2 {[%emt 0:04:19]} h6 {[%emt 0:02:36]} 11. O-O-O {[%emt 0:08:24]} Bg5 12. Kb1 {[%emt 0:04:06]} Bxe3 {[%emt 0:05:33]} 13. Qxe3 {[%emt 0:02:36]} Qg5 {[%emt 0:01:14]} 14. Qg3 {[%emt 0:10:38]} Ndc5 15. Rg1 {[%emt 0:06:55]} Qf6 {[%emt 0:17:40]} 16. h4 {[%emt 0:03:58]} g5 {[%emt 0:01:24]} 17. h5 Bd7 {[%emt 0:03:53]} 18. Qe3 {[%emt 0:02:05]} O-O {[%emt 0:05:25]} 19. f3 {[%emt 0:01:46]} a4 {[%emt 0:04:08]} 20. Nc1 {[%emt 0:04:55]} Qf4 {[%emt 0:04:14]} 21. Re1 {[%emt 0:05:26]} a3 {[%emt 0:03:12]} 22. b3 {[%emt 0:02:38]} Nb4 {[%emt 0:02:32]} 23. Rg2 {[%emt 0:03:02]} Qxe3 {[%emt 0:06:40]} 24. Rxe3 {[%emt 0:00:17]} c6 {[%emt 0:00:50]} 25. Nd3 {[%emt 0:02:13]} Ncxd3 {[%emt 0:01:43]} 26. Bxd3 {[%emt 0:00:30]} Rfc8 {[%emt 0:01:15]} 27. Rd2 {[%emt 0:03:24]} cxd5 {[%emt 0:01:20]} 28. Nxd5 {[%emt 0:00:52]} Nxd5 29. cxd5 {[%emt 0:00:43]} Rc3 {[%emt 0:01:01]} 30. Rde2 {[%emt 0:02:47]} b5 {[%emt 0:01:53]} 31. Bc2 {[%emt 0:01:59]} Rac8 {[%emt 0:01:36]} 32. Kc1 {[%emt 0:14:03]} b4 {[%emt 0:00:41]} 33. Rxc3 {[%emt 0:00:50]} Rxc3 {[%emt 0:00:11]} 34. Rf2 {[%emt 0:00:21]} Bb5 35. Kd2 {[%emt 0:00:45]} Kf8 {[%emt 0:01:36]} 36. Bd1 {[%emt 0:03:01]} Bd3 {[%emt 0:00:54]} 37. Be2 {[%emt 0:01:58]} Bb1 {[%emt 0:00:30]} 38. Bc4 {[%emt 0:03:06]} Rc2+ {[%emt 0:00:38]} 39. Ke1 {[%emt 0:00:13]} Rxf2 {[%emt 0:00:07]} 40. Kxf2 {[%emt 0:00:00]} Bxa2 {[%emt 0:00:00]} 0-1

[Event "Najdorf Memorial-A 2022"]
[Site "Warsaw"]
[Date "2022.07.11"]
[Round "3.7"]
[White "Sarkar, Justin"]
[Black "Janeczko, Jakub"]
[Result "1-0"]
[ECO "A43"]
[WhiteElo "2346"]
[BlackElo "2080"]
[Annotator "ChessBase"]
[PlyCount "119"]
[EventDate "2022.07.09"]
[EventType "swiss"]
[EventCountry "POL"]
[SourceTitle "playchess.com"]
[Source "ChessBase"]
[SourceQuality "1"]
[TimeControl "40/5400+30:1800+30"]

1. d4 {[%emt 0:00:11]} c5 {[%emt 0:00:14]} 2. d5 {[%emt 0:00:14]} d6 {[%emt 0:00:05]} 3. e4 {[%emt 0:07:47]} g6 {[%emt 0:00:14]} 4. Nf3 {[%emt 0:01:29]} Bg7 {[%emt 0:00:07]} 5. Bb5+ {[%emt 0:00:17]} Bd7 {[%emt 0:00:09]} 6. a4 {[%emt 0:00:20]} Nf6 {[%emt 0:00:11]} 7. Nc3 {[%emt 0:00:57]} O-O {[%emt 0:00:21]} 8. O-O {[%emt 0:00:58]} Na6 {[%emt 0:00:14]} 9. Re1 {[%emt 0:15:43]} Nc7 {[%emt 0:00:22]} 10. Bf1 {[%emt 0:00:19]} a6 {[%emt 0:00:22]} 11. a5 {[%emt 0:03:26]} Bb5 {[%emt 0:04:33]} 12. Nd2 {[%emt 0:04:11]} Bxf1 {[%emt 0:02:46]} 13. Kxf1 {[%emt 0:01:24]} Nb5 {[%emt 0:01:53]} 14. Nc4 {[%emt 0:00:50]} Nxc3 {[%emt 0:03:15]} 15. bxc3 {[%emt 0:00:04]} Nd7 {[%emt 0:00:31]} 16. Ra3 {[%emt 0:01:20]} b5 {[%emt 0:15:27]} 17. axb6 {[%emt 0:00:06]} Nxb6 {[%emt 0:01:48]} 18. Na5 {[%emt 0:00:30]} e6 {[%emt 0:02:01]} 19. c4 {[%emt 0:06:30]} exd5 {[%emt 0:05:47]} 20. cxd5 {[%emt 0:10:53]} f5 {[%emt 0:10:53]} 21. Kg1 fxe4 {[%emt 0:01:02]} 22. Rxe4 {[%emt 0:01:09]} Qd7 {[%emt 0:08:25]} 23. Nc6 {[%emt 0:05:34]} Kh8 {[%emt 0:00:51]} 24. c4 {[%emt 0:03:11]} Rae8 {[%emt 0:02:14]} 25. Rae3 {[%emt 0:01:38]} Rxe4 {[%emt 0:09:25]} 26. Rxe4 {[%emt 0:00:02]} Re8 {[%emt 0:00:39]} 27. Qe2 {[%emt 0:00:52]} Rxe4 {[%emt 0:00:12]} 28. Qxe4 {[%emt 0:00:03]} Qf5 {[%emt 0:04:42]} 29. Qe8+ {[%emt 0:03:11]} Qf8 {[%emt 0:00:10]} 30. Qe2 {[%emt 0:01:03]} h6 {[%emt 0:09:24]} 31. Bb2 {[%emt 0:16:50]} Bxb2 {[%emt 0:00:34]} 32. Qxb2+ {[%emt 0:00:12]} Qg7 {[%emt 0:00:05]} 33. Qc1 {[%emt 0:01:25]} Kh7 {[%emt 0:01:01]} 34. h4 {[%emt 0:00:20]} Qf6 {[%emt 0:04:18]} 35. h5 {[%emt 0:00:37]} Qg5 {[%emt 0:02:02]} 36. hxg6+ {[%emt 0:00:36]} Qxg6 {[%emt 0:00:02]} 37. Qf4 {[%emt 0:00:52]} Qb1+ {[%emt 0:02:44]} 38. Kh2 {[%emt 0:00:05]} Qg6 {[%emt 0:00:03]} 39. g3 {[%emt 0:04:21]} Nd7 {[%emt 0:01:44]} 40. Kg2 {[%emt 0:00:00]} Nf6 {[%emt 0:00:00]} 41. Qxd6 {[%emt 0:22:07]} Qe4+ {[%emt 0:06:49]} 42. Kf1 {[%emt 0:00:25]} Qd3+ {[%emt 0:26:23]} 43. Kg1 {[%emt 0:02:24]} Qb1+ {[%emt 0:00:02]} 44. Kh2 {[%emt 0:04:27]} Ng4+ {[%emt 0:00:01]} 45. Kh3 {[%emt 0:00:40]} Nxf2+ {[%emt 0:04:56]} 46. Kg2 {[%emt 0:00:03]} Nd1 {[%emt 0:00:42]} 47. Qe7+ {[%emt 0:01:19]} Kh8 {[%emt 0:00:10]} 48. Qe2 {[%emt 0:06:54]} Qc1 {[%emt 0:01:45]} 49. d6 {[%emt 0:00:44]} Ne3+ {[%emt 0:00:02]} 50. Kf3 {[%emt 0:00:44]} Qh1+ {[%emt 0:01:34]} 51. Kxe3 {[%emt 0:00:06]} Qxc6 {[%emt 0:00:04]} 52. Qd3 {[%emt 0:00:36]} Qd7 {[%emt 0:01:17]} 53. Qd5 {[%emt 0:00:15]} Qg4 {[%emt 0:00:18]} 54. d7 {[%emt 0:03:43]} Qxg3+ {[%emt 0:00:01]} 55. Ke4 {[%emt 0:00:38]} Qh4+ {[%emt 0:01:11]} 56. Kf5 {[%emt 0:00:07]} Qd8 {[%emt 0:00:20]} 57. Kg6 {[%emt 0:01:21]} Qb6+ {[%emt 0:00:31]} 58. Kf7 {[%emt 0:00:10]} Qd8 {[%emt 0:00:01]} 59. Qe5+ {[%emt 0:00:06]} Kh7 {[%emt 0:00:03]} 60. Qg7# 1-0

[Event "Najdorf Memorial-A 2022"]
[Site "Warsaw"]
[Date "2022.07.11"]
[Round "3.7"]
[White "Gorkiewicz, Mateusz"]
[Black "Rejniak, Zuzanna"]
[Result "1-0"]
[ECO "B90"]
[WhiteElo "2023"]
[BlackElo "1813"]
[Annotator "ChessBase"]
[PlyCount "101"]
[EventDate "2022.07.09"]
[EventType "swiss"]
[EventCountry "POL"]
[SourceTitle "playchess.com"]
[Source "ChessBase"]
[SourceQuality "1"]
[TimeControl "40/5400+30:1800+30"]

1. e4 {[%emt 0:00:04]} c5 {[%emt 0:00:04]} 2. Nf3 {[%emt 0:00:09]} d6 {[%emt 0:00:05]} 3. d4 {[%emt 0:00:10]} cxd4 {[%emt 0:00:04]} 4. Nxd4 {[%emt 0:00:15]} Nf6 {[%emt 0:00:06]} 5. Nc3 {[%emt 0:00:09]} a6 {[%emt 0:00:05]} 6. Nb3 {[%emt 0:00:26]} e6 {[%emt 0:02:17]} 7. Bd3 {[%emt 0:00:21]} Be7 {[%emt 0:00:23]} 8. O-O {[%emt 0:00:12]} O-O {[%emt 0:01:18]} 9. f4 {[%emt 0:00:14]} Qc7 {[%emt 0:02:59]} 10. Qf3 {[%emt 0:00:45]} Nbd7 {[%emt 0:00:40]} 11. a4 {[%emt 0:04:18]} b6 {[%emt 0:05:31]} 12. Bd2 {[%emt 0:00:41]} Bb7 {[%emt 0:01:59]} 13. Qh3 {[%emt 0:00:42]} e5 {[%emt 0:10:31]} 14. Rae1 {[%emt 0:02:03]} Rfe8 {[%emt 0:08:16]} 15. g4 {[%emt 0:04:01]} Nc5 {[%emt 0:09:02]} 16. Nxc5 {[%emt 0:05:20]} Qxc5+ {[%emt 0:02:59]} 17. Be3 {[%emt 0:00:51]} Qc8 {[%emt 0:02:45]} 18. f5 {[%emt 0:03:23]} d5 {[%emt 0:10:27]} 19. exd5 {[%emt 0:04:47]} Bc5 {[%emt 0:00:43]} 20. Be4 {[%emt 0:21:10]} Bxe3+ {[%emt 0:08:23]} 21. Rxe3 {[%emt 0:02:30]} Qc5 {[%emt 0:01:04]} 22. Rfe1 {[%emt 0:03:24]} Bxd5 {[%emt 0:11:44]} 23. Nxd5 {[%emt 0:05:52]} Nxe4 {[%emt 0:00:12]} 24. Qg2 {[%emt 0:04:42]} Qxd5 {[%emt 0:02:27]} 25. Rxe4 {[%emt 0:00:15]} Rac8 {[%emt 0:01:57]} 26. c3 {[%emt 0:02:24]} Rc4 {[%emt 0:03:21]} 27. h3 {[%emt 0:02:47]} Rxe4 {[%emt 0:00:25]} 28. Qxe4 {[%emt 0:00:59]} Qd2 {[%emt 0:03:56]} 29. Re2 {[%emt 0:00:45]} Qd1+ {[%emt 0:01:18]} 30. Kf2 {[%emt 0:02:24]} Rd8 {[%emt 0:01:52]} 31. Qxe5 {[%emt 0:08:05]} Qxa4 {[%emt 0:00:11]} 32. Qc7 {[%emt 0:02:18]} Re8 {[%emt 0:04:42]} 33. Rxe8+ {[%emt 0:01:01]} Qxe8 {[%emt 0:00:02]} 34. Qxb6 {[%emt 0:00:11]} Qc8 {[%emt 0:00:03]} 35. c4 {[%emt 0:01:32]} h5 {[%emt 0:00:03]} 36. c5 {[%emt 0:00:17]} hxg4 {[%emt 0:00:03]} 37. hxg4 {[%emt 0:00:08]} Qd7 {[%emt 0:00:20]} 38. c6 {[%emt 0:08:59]} Qd2+ {[%emt 0:00:09]} 39. Kf3 {[%emt 0:00:09]} Qd1+ {[%emt 0:03:30]} 40. Kf4 {[%emt 0:00:00]} Qd2+ {[%emt 0:00:00]} 41. Ke5 {[%emt 0:06:55]} Qh2+ {[%emt 0:02:05]} 42. Kd5 {[%emt 0:00:33]} Qd2+ {[%emt 0:00:06]} 43. Qd4 {[%emt 0:01:24]} Qa5+ {[%emt 0:00:18]} 44. Qc5 {[%emt 0:01:41]} Qd2+ {[%emt 0:00:39]} 45. Kc4 {[%emt 0:02:59]} Qc1+ {[%emt 0:05:48]} 46. Kb4 {[%emt 0:02:31]} Qxb2+ {[%emt 0:04:46]} 47. Ka5 {[%emt 0:00:26]} Qa1+ {[%emt 0:01:16]} 48. Kb6 {[%emt 0:00:13]} Qb2+ {[%emt 0:00:05]} 49. Ka7 {[%emt 0:00:22]} Qd2 {[%emt 0:00:37]} 50. c7 {[%emt 0:00:14]} Qd7 {[%emt 0:00:03]} 51. Kb8 {[%emt 0:00:12]} 1-0

[Event "Najdorf Memorial-A 2022"]
[Site "Warsaw"]
[Date "2022.07.11"]
[Round "3.8"]
[White "Nowak, Lukasz"]
[Black "Shilov, Sergej"]
[Result "1/2-1/2"]
[ECO "D10"]
[WhiteElo "2327"]
[BlackElo "2048"]
[Annotator "ChessBase"]
[PlyCount "104"]
[EventDate "2022.07.09"]
[EventType "swiss"]
[EventCountry "POL"]
[SourceTitle "playchess.com"]
[Source "ChessBase"]
[SourceQuality "1"]
[TimeControl "40/5400+30:1800+30"]

1. d4 d5 2. c4 c6 3. cxd5 cxd5 4. Bf4 Nc6 5. e3 Nf6 6. Nc3 a6 7. Be2 Bf5 8. Nf3 e6 9. Qb3 Bd6 10. Bxd6 Qxd6 11. Qxb7 O-O 12. Qb3 Rfb8 13. Qa3 Qb4 14. Qxb4 Nxb4 15. O-O Nc2 16. Rab1 Ne4 17. Nxe4 Bxe4 18. Nd2 Bg6 19. b3 Nb4 20. Rb2 Rc8 21. Nf3 f6 22. Ne1 Rc3 23. h4 h6 24. g3 a5 25. Ng2 Be4 26. Rd1 Rac8 27. f3 Bh7 28. Kf2 g5 29. Ne1 Kf7 30. Rdd2 Ke7 31. a3 Nc2 32. Nxc2 Bxc2 33. Bd1 Bxd1 34. Rxd1 gxh4 35. gxh4 Rc2+ 36. Rd2 Rxd2+ 37. Rxd2 Rc1 38. Rb2 Ra1 39. a4 Kd6 40. b4 Rxa4 41. bxa5 Rxa5 42. Rb7 Ra2+ 43. Kg3 Re2 44. Rf7 Rxe3 45. Rxf6 Rd3 46. Rxh6 Rxd4 47. h5 Rd1 48. Rh8 Ke5 49. h6 Kf6 50. h7 Kg7 51. Re8 Kxh7 52. Rxe6 Rd4 1/2-1/2

[Event "Najdorf Memorial-A 2022"]
[Site "Warsaw"]
[Date "2022.07.11"]
[Round "3.8"]
[White "Hemmerling, Jaroslaw"]
[Black "Maslanka, Wojciech"]
[Result "1/2-1/2"]
[ECO "B12"]
[WhiteElo "1854"]
[BlackElo "2000"]
[Annotator "ChessBase"]
[PlyCount "90"]
[EventDate "2022.07.09"]
[EventType "swiss"]
[EventCountry "POL"]
[SourceTitle "playchess.com"]
[Source "ChessBase"]
[SourceQuality "1"]
[TimeControl "40/5400+30:1800+30"]

1. e4 {[%emt 0:00:02]} c6 {[%emt 0:00:05]} 2. d4 {[%emt 0:00:06]} d5 {[%emt 0:00:03]} 3. e5 {[%emt 0:00:13]} Bf5 {[%emt 0:00:07]} 4. Nf3 {[%emt 0:00:11]} e6 {[%emt 0:00:17]} 5. Be2 {[%emt 0:00:03]} Nd7 {[%emt 0:02:50]} 6. O-O {[%emt 0:03:55]} h6 {[%emt 0:01:16]} 7. Be3 {[%emt 0:06:55]} Ne7 {[%emt 0:00:30]} 8. Nbd2 {[%emt 0:00:04]} Rc8 {[%emt 0:03:13]} 9. Nb3 {[%emt 0:13:48]} Bh7 {[%emt 0:10:38]} 10. c4 {[%emt 0:10:16]} dxc4 {[%emt 0:00:31]} 11. Bxc4 {[%emt 0:00:02]} Nb6 {[%emt 0:01:57]} 12. Bd3 {[%emt 0:00:01]} Bxd3 {[%emt 0:00:12]} 13. Qxd3 {[%emt 0:00:02]} Nf5 {[%emt 0:00:24]} 14. Rad1 {[%emt 0:00:30]} Be7 {[%emt 0:03:36]} 15. Nc5 {[%emt 0:22:02]} Qc7 {[%emt 0:04:47]} 16. Bc1 {[%emt 0:08:45]} O-O {[%emt 0:02:41]} 17. g4 {[%emt 0:01:07]} Nh4 {[%emt 0:00:23]} 18. Nxh4 {[%emt 0:00:01]} Bxh4 {[%emt 0:00:07]} 19. g5 {[%emt 0:00:05]} Bxg5 {[%emt 0:06:20]} 20. Bxg5 {[%emt 0:00:04]} hxg5 {[%emt 0:00:05]} 21. Qg3 {[%emt 0:03:27]} Qe7 {[%emt 0:01:47]} 22. Ne4 {[%emt 0:01:36]} f6 {[%emt 0:03:12]} 23. exf6 {[%emt 0:19:00]} gxf6 {[%emt 0:00:10]} 24. f4 {[%emt 0:00:29]} g4 {[%emt 0:00:37]} 25. Qxg4+ {[%emt 0:01:17]} Qg7 {[%emt 0:00:07]} 26. Qxg7+ {[%emt 0:00:20]} Kxg7 {[%emt 0:00:10]} 27. f5 {[%emt 0:01:05]} exf5 {[%emt 0:01:20]} 28. Nd6 {[%emt 0:01:14]} Rc7 {[%emt 0:01:13]} 29. Rd3 {[%emt 0:00:15]} Rg8 {[%emt 0:01:27]} 30. Rg3+ {[%emt 0:00:59]} Kf8 {[%emt 0:00:55]} 31. Rxg8+ {[%emt 0:04:07]} Kxg8 {[%emt 0:00:06]} 32. Rxf5 {[%emt 0:00:04]} Nd5 {[%emt 0:00:14]} 33. Ne8 {[%emt 0:00:58]} Rf7 {[%emt 0:00:46]} 34. Kf2 {[%emt 0:00:19]} Kh7 {[%emt 0:03:12]} 35. Rf3 {[%emt 0:01:14]} Kg8 {[%emt 0:04:04]} 36. Nd6 {[%emt 0:00:20]} Rh7 {[%emt 0:00:38]} 37. Kg3 {[%emt 0:00:50]} Rg7+ {[%emt 0:02:26]} 38. Kf2 {[%emt 0:00:17]} Kf8 {[%emt 0:01:03]} 39. Rb3 {[%emt 0:01:51]} b6 {[%emt 0:00:49]} 40. Rf3 {[%emt 0:00:00]} Rg4 {[%emt 0:00:00]} 41. Nf5 {[%emt 0:21:51]} Nf4 {[%emt 0:10:45]} 42. Ne3 {[%emt 0:01:26]} Nd3+ {[%emt 0:00:25]} 43. Ke2 {[%emt 0:01:09]} Rxd4 {[%emt 0:01:34]} 44. Rxf6+ {[%emt 0:00:35]} Ke8 {[%emt 0:00:12]} 45. Rxc6 {[%emt 0:02:20]} Nxb2 1/2-1/2

[Event "Najdorf Memorial-A 2022"]
[Site "Warsaw"]
[Date "2022.07.11"]
[Round "3.9"]
[White "Danielyan, Vahe"]
[Black "Zdybel, Przemyslaw"]
[Result "1-0"]
[ECO "B90"]
[WhiteElo "2295"]
[BlackElo "2026"]
[Annotator "ChessBase"]
[PlyCount "85"]
[EventDate "2022.07.09"]
[EventType "swiss"]
[EventCountry "POL"]
[SourceTitle "playchess.com"]
[Source "ChessBase"]
[SourceQuality "1"]
[TimeControl "40/5400+30:1800+30"]

1. e4 {[%emt 0:00:02]} c5 {[%emt 0:00:10]} 2. Nf3 {[%emt 0:00:12]} d6 {[%emt 0:00:10]} 3. d4 {[%emt 0:00:26]} cxd4 {[%emt 0:00:11]} 4. Nxd4 {[%emt 0:00:03]} Nf6 {[%emt 0:00:08]} 5. Nc3 {[%emt 0:00:07]} a6 {[%emt 0:00:06]} 6. Nb3 {[%emt 0:00:23]} g6 {[%emt 0:00:58]} 7. Bg5 {[%emt 0:00:59]} Bg7 {[%emt 0:00:52]} 8. Qd2 {[%emt 0:00:12]} Nbd7 {[%emt 0:02:06]} 9. O-O-O {[%emt 0:00:17]} h6 {[%emt 0:04:22]} 10. Bf4 {[%emt 0:01:01]} b5 {[%emt 0:01:23]} 11. f3 {[%emt 0:00:12]} Bb7 {[%emt 0:04:54]} 12. Kb1 {[%emt 0:01:12]} Qc7 {[%emt 0:09:30]} 13. Be3 {[%emt 0:07:22]} Rc8 {[%emt 0:03:24]} 14. g4 {[%emt 0:01:07]} b4 {[%emt 0:07:03]} 15. Ne2 {[%emt 0:03:54]} Nxe4 {[%emt 0:02:23]} 16. fxe4 {[%emt 0:00:22]} Bxe4 {[%emt 0:00:09]} 17. Ned4 {[%emt 0:04:17]} Bxh1 {[%emt 0:01:11]} 18. Bxa6 {[%emt 0:00:12]} Bb7 {[%emt 0:01:23]} 19. Bd3 {[%emt 0:00:03]} Ne5 {[%emt 0:04:49]} 20. Bb5+ {[%emt 0:00:27]} Kf8 {[%emt 0:00:30]} 21. Rf1 {[%emt 0:01:05]} Kg8 {[%emt 0:00:42]} 22. Qf2 {[%emt 0:00:36]} Bd5 {[%emt 0:05:50]} 23. h3 {[%emt 0:01:08]} Nc4 {[%emt 0:02:31]} 24. Bc1 {[%emt 0:01:01]} e5 {[%emt 0:00:31]} 25. Nc6 {[%emt 0:03:19]} Bxc6 {[%emt 0:02:24]} 26. Bxc4 {[%emt 0:00:12]} d5 {[%emt 0:00:36]} 27. Be2 {[%emt 0:00:29]} Bb7 {[%emt 0:01:49]} 28. Bd1 {[%emt 0:00:19]} Ba6 {[%emt 0:13:40]} 29. Re1 {[%emt 0:00:19]} Kh7 {[%emt 0:03:29]} 30. h4 {[%emt 0:00:02]} Bc4 {[%emt 0:02:57]} 31. Bd2 {[%emt 0:02:01]} Bxb3 {[%emt 0:00:29]} 32. axb3 {[%emt 0:00:23]} e4 {[%emt 0:00:40]} 33. Bxb4 {[%emt 0:01:42]} Qe5 {[%emt 0:02:00]} 34. c3 {[%emt 0:00:04]} f5 {[%emt 0:00:28]} 35. h5 {[%emt 0:01:30]} f4 {[%emt 0:00:29]} 36. hxg6+ {[%emt 0:00:20]} Kxg6 {[%emt 0:00:02]} 37. Bc2 {[%emt 0:01:18]} Rc7 {[%emt 0:05:50]} 38. Qb6+ {[%emt 0:01:42]} Bf6 {[%emt 0:05:31]} 39. Bd6 {[%emt 0:01:17]} Rb7 {[%emt 0:00:03]} 40. Qc6 {[%emt 0:00:00]} Qe6 {[%emt 0:00:00]} 41. Rxe4 {[%emt 0:06:28]} dxe4 {[%emt 0:00:18]} 42. Bxe4+ {[%emt 0:00:08]} Kg5 {[%emt 0:00:46]} 43. Bxf4+ {[%emt 0:00:28]} 1-0

[Event "Najdorf Memorial-A 2022"]
[Site "Warsaw"]
[Date "2022.07.11"]
[Round "3.9"]
[White "Kulpa, Zuzanna"]
[Black "Rozumek, Krzysztof"]
[Result "0-1"]
[ECO "A52"]
[WhiteElo "1985"]
[BlackElo "1801"]
[Annotator "ChessBase"]
[PlyCount "108"]
[EventDate "2022.07.09"]
[EventType "swiss"]
[EventCountry "POL"]
[SourceTitle "playchess.com"]
[Source "ChessBase"]
[SourceQuality "1"]
[TimeControl "40/5400+30:1800+30"]

1. d4 {[%emt 0:00:02]} Nf6 {[%emt 0:00:01]} 2. c4 {[%emt 0:00:07]} e5 {[%emt 0:00:02]} 3. dxe5 {[%emt 0:00:08]} Ng4 {[%emt 0:00:01]} 4. Bf4 {[%emt 0:00:10]} g5 {[%emt 0:00:06]} 5. Bg3 {[%emt 0:00:42]} Bg7 {[%emt 0:00:02]} 6. Nf3 {[%emt 0:02:38]} Nc6 {[%emt 0:00:02]} 7. Nc3 {[%emt 0:00:10]} Ngxe5 {[%emt 0:00:08]} 8. Nxe5 {[%emt 0:00:08]} Nxe5 {[%emt 0:00:24]} 9. e3 {[%emt 0:00:38]} d6 {[%emt 0:00:12]} 10. h4 {[%emt 0:00:14]} g4 {[%emt 0:00:04]} 11. h5 {[%emt 0:00:17]} Be6 {[%emt 0:00:46]} 12. Nd5 {[%emt 0:06:11]} Bxd5 {[%emt 0:12:45]} 13. cxd5 {[%emt 0:00:29]} c5 {[%emt 0:01:25]} 14. Qa4+ {[%emt 0:05:00]} Kf8 {[%emt 0:00:22]} 15. Be2 {[%emt 0:05:20]} a6 {[%emt 0:10:19]} 16. Rb1 {[%emt 0:08:01]} b5 {[%emt 0:01:27]} 17. Qa3 {[%emt 0:03:25]} Rg8 {[%emt 0:22:26]} 18. Kf1 {[%emt 0:07:42]} Qb6 {[%emt 0:07:53]} 19. Qb3 {[%emt 0:06:23]} Qb7 {[%emt 0:06:09]} 20. Rd1 {[%emt 0:02:42]} Qd7 {[%emt 0:06:50]} 21. Qc2 {[%emt 0:03:19]} h6 {[%emt 0:05:03]} 22. Bf4 {[%emt 0:03:43]} Ke7 {[%emt 0:06:23]} 23. Qh7 {[%emt 0:08:51]} Bf6 {[%emt 0:00:55]} 24. Qe4 {[%emt 0:00:14]} Bg7 {[%emt 0:01:31]} 25. Bg3 {[%emt 0:04:51]} f5 {[%emt 0:02:03]} 26. Bh4+ {[%emt 0:00:44]} Bf6 {[%emt 0:01:23]} 27. Bxf6+ {[%emt 0:00:26]} Kxf6 {[%emt 0:00:02]} 28. Qf4 {[%emt 0:00:12]} Qg7 {[%emt 0:00:29]} 29. a4 {[%emt 0:05:31]} Qg5 {[%emt 0:01:25]} 30. Qxg5+ {[%emt 0:02:24]} hxg5 {[%emt 0:00:37]} 31. axb5 {[%emt 0:01:05]} axb5 {[%emt 0:00:01]} 32. f4 {[%emt 0:00:40]} gxf3 {[%emt 0:00:48]} 33. gxf3 {[%emt 0:00:10]} b4 {[%emt 0:01:50]} 34. f4 {[%emt 0:01:37]} gxf4 {[%emt 0:02:29]} 35. exf4 {[%emt 0:00:07]} Ng4 {[%emt 0:00:19]} 36. Rh3 {[%emt 0:04:17]} Rae8 {[%emt 0:01:03]} 37. Bxg4 {[%emt 0:04:29]} Rxg4 {[%emt 0:00:04]} 38. h6 {[%emt 0:02:15]} Rxf4+ {[%emt 0:01:21]} 39. Kg1 {[%emt 0:00:05]} Rh8 {[%emt 0:02:19]} 40. Kh1 {[%emt 0:00:00]} Rh7 {[%emt 0:00:00]} 41. Re1 {[%emt 0:09:03]} Re4 {[%emt 0:03:57]} 42. Rxe4 {[%emt 0:00:14]} fxe4 {[%emt 0:00:03]} 43. Kg2 {[%emt 0:00:06]} Kg6 {[%emt 0:01:02]} 44. Rh4 {[%emt 0:00:18]} Rxh6 {[%emt 0:00:16]} 45. Rxe4 {[%emt 0:00:04]} Kf5 {[%emt 0:00:10]} 46. Re8 {[%emt 0:00:36]} Rh4 {[%emt 0:01:20]} 47. Re6 {[%emt 0:00:48]} Rd4 {[%emt 0:00:02]} 48. Rxd6 {[%emt 0:00:11]} Ke5 {[%emt 0:00:14]} 49. Re6+ {[%emt 0:00:17]} Kxd5 {[%emt 0:00:02]} 50. Re2 {[%emt 0:00:05]} Kc4 {[%emt 0:05:08]} 51. Kf3 {[%emt 0:02:00]} Kb3 {[%emt 0:00:45]} 52. Ke3 {[%emt 0:00:33]} Rc4 {[%emt 0:00:34]} 53. Kd3 {[%emt 0:00:18]} Rc1 {[%emt 0:00:09]} 54. Kd2 {[%emt 0:02:24]} Rc2+ {[%emt 0:00:03]} 0-1